bitfinex/quotes_ETHUSD_20241129
["timestamp","ask_amount","ask_price","bid_price","bid_amount"]
[1732923803855,2.77805,3599.7,3599.2,0.8249]
[1732923804052,0.05678876,3599.4,3599.2,0.8249]
[1732923804265,2.77817,3599.5,3599.2,0.8249]
[1732923804436,0.05677069,3599.3,3598.9,2.77861]
[1732923804632,0.3458,3599.4,3598.9,2.77861]
[1732923804981,0.05676076,3599.3,3598.9,2.77861]
[1732923805144,2.77817,3599.5,3598.9,2.77861]
[1732923805649,0.05677883,3599.4,3598.9,2.77861]
[1732923806160,2.83501883,3599.4,3598.9,2.77861]
[1732923813790,0.05677883,3599.4,3598.7,0.8041]
[1732923813948,2.77821,3599.5,3598.9,2.7786]
[1732923814144,0.05592549,3599.4,3598.9,2.7786]
[1732923814687,2.7786,3599.0,3598.5,2.77893]
[1732923814889,2.7786,3599.0,3598.4,0.8041]
[1732923814890,0.3458,3599.1,3598.6,2.77881]
[1732923815181,0.05583667,3599.0,3598.4,0.8041]
[1732923815389,3.12412,3599.3,3598.8,2.7787]
[1732923815558,0.05581859,3598.9,3598.8,2.7787]
[1732923815742,3.12412,3599.3,3598.8,2.7787]
[1732923815943,2.83427282,3599.2,3598.6,2.77884]
[1732923816150,2.77847,3599.1,3598.6,2.77884]
[1732923816370,0.05583667,3599.0,3598.6,2.77884]
[1732923820060,0.05583667,3599.0,3598.7,2.77876]
[1732923820251,2.77839,3599.2,3598.7,2.77876]
[1732923820445,0.05487436,3598.9,3598.7,2.77876]
[1732923820674,2.77839,3599.2,3598.7,2.77876]
[1732923820880,0.05485628,3598.8,3598.7,2.77876]
[1732923821488,2.77839,3599.2,3598.7,2.77876]
[1732923822089,0.05491051,3599.1,3598.5,2.77888]
[1732923823182,0.05491051,3599.1,3598.4,3.58308]
[1732923823373,0.05491051,3599.1,3598.6,2.77885]
[1732923823861,0.05491051,3599.1,3598.9,2.77855]
[1732923824170,2.77816,3599.5,3598.9,3.54195]
[1732923825796,0.05499301,3599.4,3598.9,3.54195]
[1732923826706,2.83323301,3599.4,3598.9,3.54195]
[1732923827082,0.05499301,3599.4,3599.0,2.77853]
[1732923827387,2.77818,3599.5,3599.0,2.77853]
[1732923827559,0.05497494,3599.3,3599.1,0.2082132]
[1732923827756,0.3458,3599.2,3598.7,2.77877]
[1732923828000,0.0549388,3599.1,3598.7,2.77877]
[1732923829207,0.0549388,3599.1,3598.7,2.77872]
[1732923829865,0.0549388,3599.1,3598.5,3.54232]
[1732923830066,0.0549388,3599.1,3598.6,0.3900628]
[1732923830401,0.0549388,3599.1,3598.6,3.1688928]
[1732923832012,0.0549388,3599.1,3598.7,2.77877]
[1732923832901,0.0549388,3599.1,3598.8,2.7787]
[1732923833504,0.0549388,3599.1,3598.6,3.1688428]
[1732923833676,0.0549388,3599.1,3598.7,3.48570208]
[1732923835606,2.8334088,3599.1,3598.7,0.70694208]
[1732923836609,2.8334088,3599.1,3598.3,2.77905]
[1732923836610,0.3458,3598.9,3598.0,0.7634]
[1732923836905,3.12494,3598.3,3597.6,3.543]
[1732923837091,2.77917,3598.2,3597.7,1.97973767]
[1732923837278,2.77929,3598.1,3597.7,1.19825768]
[1732923837481,2.83398022,3598.1,3597.8,0.93721628]
[1732923838526,2.83398022,3598.1,3597.7,1.19825768]
[1732923838527,2.77932,3598.0,3597.7,1.19825768]
[1732923839033,2.77945,3597.9,3597.7,1.19825768]
[1732923839193,0.3458,3597.8,3597.7,1.19825768]
[1732923840146,0.3458,3597.8,3597.7,2.13551833]
[1732923840306,0.3458,3597.8,3597.7,0.93726065]
[1732923840837,0.40022102,3597.8,3597.7,0.93726065]
[1732923841141,3.17969102,3597.8,3597.7,0.93726065]
[1732923841846,3.17969102,3597.8,3597.7,0.93644903]
[1732923842337,3.17969102,3597.8,3597.7,0.41619957]
[1732923843303,3.17969102,3597.8,3597.3,0.51998665]
[1732923843558,3.17969102,3597.8,3597.4,0.41575401]
[1732923843811,3.17969102,3597.8,3597.5,0.41575401]
[1732923844000,3.17969102,3597.8,3597.3,0.51968968]
[1732923844333,3.17969102,3597.8,3597.3,0.51945737]
[1732923845235,3.17969102,3597.8,3597.3,1.26817771]
[1732923845443,2.77957,3597.7,3597.3,1.26817771]
[1732923845611,2.8338472,3597.7,3597.3,0.74872034]
[1732923845821,2.8338472,3597.7,3597.2,0.51945737]
[1732923847743,2.8338472,3597.7,3597.2,0.51896918]
[1732923848319,2.8338472,3597.7,3597.1,3.55431]
[1732923848828,0.0542772,3597.7,3597.2,2.77989]
[1732923849045,0.0542772,3597.7,3597.3,0.63342]
[1732923849248,0.3458,3597.8,3597.3,0.63342]
[1732923849419,0.05426397,3597.7,3597.3,0.63342]
[1732923849618,0.3458,3597.8,3597.3,0.63342]
[1732923849939,0.05426397,3597.7,3597.3,0.63342]
[1732923850147,0.05426397,3597.7,3597.4,0.418773]
[1732923850315,3.12514,3598.0,3597.4,3.198493]
[1732923850664,3.12514,3598.0,3597.4,2.77976]
[1732923850884,0.05430014,3597.9,3597.4,2.77976]
[1732923851157,0.05430014,3597.9,3597.5,2.77969]
[1732923851468,0.05430014,3597.9,3597.8,2.77947]
[1732923851681,0.3458,3598.9,3597.8,2.05904155]
[1732923851970,2.77844,3599.2,3597.8,2.05904155]
[1732923851971,0.05084276,3598.8,3598.5,2.77889]
[1732923852323,2.77864,3598.9,3598.3,3.60519]
[1732923852550,0.0508102,3598.7,3598.4,2.77896]
[1732923852824,0.05078315,3598.6,3598.3,3.60519]
[1732923853026,3.12435,3599.0,3598.3,0.360519]
[1732923853244,0.05097051,3598.9,3598.3,2.77902]
[1732923853642,0.05097051,3598.9,3598.4,2.77901]
[1732923858366,0.05097051,3598.9,3598.5,2.77892]
[1732923859964,0.05097051,3598.9,3598.3,2.77908]
[1732923860171,0.05097051,3598.9,3598.4,0.277908]
[1732923860355,0.05097051,3598.9,3598.4,3.056898]
[1732923861329,0.05097051,3598.9,3598.5,2.77893]
[1732923861757,0.05097051,3598.9,3598.4,3.056908]
[1732923866271,0.05097051,3598.9,3598.5,2.77889]
[1732923866447,0.05097051,3598.9,3598.6,3.56445]
[1732923866649,3.12419,3599.2,3598.6,3.56445]
[1732923866973,0.04995828,3599.1,3598.6,3.56445]
[1732923867174,0.04995828,3599.1,3598.6,0.7856]
[1732923867387,0.04995828,3599.1,3598.9,2.77858]
[1732923867533,0.04995828,3599.1,3599.0,0.555736]
[1732923867734,3.12406,3599.4,3599.0,0.555736]
[1732923867735,0.3458,3599.4,3599.0,0.555736]
[1732923867974,0.3458,3599.0,3598.1,2.7792]
[1732923868172,0.3458,3599.0,3598.2,2.77916]
[1732923868345,2.82852038,3598.9,3598.2,2.77916]
[1732923868669,0.04988038,3598.9,3598.2,2.77916]
[1732923869550,0.04988038,3598.9,3598.4,2.77899]
[1732923869745,0.04988038,3598.9,3598.5,0.555815]
[1732923869958,0.04988038,3598.9,3598.3,2.77907]
[1732923872344,2.82850038,3598.9,3598.3,2.77907]
[1732923874990,2.77875,3598.8,3598.1,3.56483]
[1732923875299,2.82855038,3598.9,3598.3,2.77907]
[1732923875586,0.0483395,3598.7,3598.4,0.36127118]
[1732923875786,0.04835758,3598.8,3598.4,0.36127118]
[1732923875983,0.04832142,3598.6,3598.4,0.36127118]
[1732923876192,2.77867,3598.9,3598.4,0.36127118]
[1732923876485,2.77867,3598.9,3598.3,2.77907]
[1732923876845,0.04835758,3598.8,3598.3,2.77907]
[1732923878306,2.82706758,3598.8,3598.3,2.77907]
[1732923880512,0.04835758,3598.8,3598.3,2.77907]
[1732923880665,2.77862,3598.9,3598.3,2.77907]
[1732923881141,0.04834094,3598.8,3598.3,2.77907]
[1732923881413,0.04834094,3598.8,3598.3,3.41346]
[1732923882711,2.82707094,3598.8,3598.3,0.63439]
[1732923882872,2.82707094,3598.8,3598.2,2.77913]
[1732923884566,2.82707094,3598.8,3598.3,2.77908]
[1732923888384,0.04834094,3598.8,3598.3,2.77908]
[1732923888592,2.77861,3599.0,3598.5,0.7635]
[1732923888786,2.77863,3598.9,3598.5,0.7635]
[1732923889027,2.82698902,3598.9,3598.5,0.7635]
[1732923889525,2.82698902,3598.9,3598.3,2.77908]
[1732923890393,2.82698902,3598.9,3598.3,5.55811]
[1732923890823,2.82698902,3598.9,3598.3,6.190271]
[1732923891161,2.82698902,3598.9,3598.4,2.779]
[1732923893827,0.04835902,3598.9,3598.4,2.779]
[1732923894015,0.04835902,3598.9,3598.7,2.77874]
[1732923894216,0.3458,3599.2,3598.7,2.77874]
[1732923894649,0.04839184,3599.1,3598.7,2.77874]
[1732923895516,0.04839184,3599.1,3598.6,0.7635]
[1732923895864,0.04839184,3599.1,3598.6,1.1809551]
[1732923896403,0.04839184,3599.1,3598.8,2.77869]
[1732923897330,0.04839184,3599.1,3598.9,0.26052758]
[1732923897544,0.04839184,3599.1,3599.0,0.26052758]
[1732923898751,0.39419184,3599.1,3599.0,0.26052758]
[1732923901227,0.04839184,3599.1,3599.0,0.26052758]
[1732923901425,2.77832,3599.3,3599.0,0.26052758]
[1732923901725,2.77832,3599.3,3598.8,2.77869]
[1732923901726,0.04674238,3599.2,3599.1,0.26052758]
[1732923902054,2.77793,3599.8,3599.3,2.77826]
[1732923902264,2.77793,3599.8,3599.4,0.26052758]
[1732923902443,2.77793,3599.8,3599.3,2.77826]
[1732923902646,0.3458,3599.9,3599.0,0.7635]
[1732923902860,0.3458,3599.3,3599.0,0.43399223]
[1732923903167,0.3458,3599.3,3598.9,0.43399223]
[1732923903370,0.3458,3599.3,3599.0,3.21249223]
[1732923903573,0.04673006,3599.2,3599.0,3.21249223]
[1732923904069,3.12396,3599.5,3599.1,0.4165549]
[1732923904275,3.12396,3599.5,3599.2,0.4165549]
[1732923904422,0.3458,3599.5,3599.0,3.21249223]
[1732923905990,2.7783,3599.4,3598.9,0.43399223]
[1732923906141,2.7783,3599.4,3597.8,8.37]
[1732923906142,2.77852,3599.1,3598.8,0.43399223]
[1732923906477,0.3458,3599.0,3598.6,0.43399223]
[1732923907268,0.04674822,3598.9,3598.6,0.43399223]
[1732923907471,0.04674822,3598.9,3598.5,0.43399223]
[1732923907681,0.04674822,3598.9,3598.6,3.21278223]
[1732923907840,0.3458,3599.0,3598.6,3.21278223]
[1732923908342,0.04669652,3598.9,3598.6,3.21278223]
[1732923908560,0.04669652,3598.9,3598.6,3.89424745]
[1732923909287,0.04669652,3598.9,3598.6,1.11545745]
[1732923909576,0.04669652,3598.9,3598.5,2.77889]
[1732923909884,0.04669652,3598.9,3598.4,2.779]
[1732923910377,2.82539652,3598.9,3598.3,2.77907]
[1732923911297,2.77871,3598.8,3598.0,0.8229]
[1732923911490,2.77871,3598.8,3598.2,2.77916]
[1732923911642,0.04651037,3598.7,3598.2,2.77916]
[1732923912163,0.04651037,3598.7,3598.3,2.77908]
[1732923912367,2.77871,3598.8,3598.3,2.77908]
[1732923912580,0.04645722,3598.6,3598.3,2.77908]
[1732923912765,0.04645722,3598.6,3598.3,3.46732876]
[1732923912965,2.77871,3598.8,3598.3,3.46732876]
[1732923913167,0.04643914,3598.5,3598.3,3.46732876]
[1732923913340,3.12436,3599.0,3598.4,2.77901]
[1732923913541,0.04651145,3598.9,3598.4,2.77901]
[1732923913845,2.82519145,3598.9,3598.3,2.77907]
[1732923914344,2.82519145,3598.9,3598.4,2.77899]
[1732923915163,2.77871,3598.8,3598.3,0.68824776]
[1732923915388,0.0464753,3598.7,3598.2,2.77916]
[1732923915680,2.8252553,3598.7,3598.2,2.77916]
[1732923916211,0.0464753,3598.7,3598.2,2.77916]
[1732923916785,2.77868,3598.9,3598.2,2.77916]
[1732923916942,2.77871,3598.8,3598.2,2.77916]
[1732923917745,2.77871,3598.8,3598.3,2.77908]
[1732923918075,0.046482,3598.7,3598.3,3.46732876]
[1732923918582,2.77871,3598.8,3598.3,3.46732876]
[1732923918782,0.04646392,3598.6,3598.3,3.46732876]
[1732923918988,0.046482,3598.7,3598.3,3.46732876]
[1732923919149,0.04644584,3598.5,3598.3,3.46732876]
[1732923919347,2.77871,3598.8,3598.3,3.46732876]
[1732923919698,0.046482,3598.7,3598.3,2.77908]
[1732923920183,0.04646392,3598.6,3598.3,2.77908]
[1732923920681,2.77871,3598.8,3598.3,2.77908]
[1732923920857,0.04644584,3598.5,3598.3,2.77908]
[1732923921188,2.77871,3598.8,3598.3,2.77908]
[1732923921494,0.04642776,3598.4,3598.3,2.77908]
[1732923921662,2.77871,3598.8,3598.3,3.417207]
[1732923922002,2.77871,3598.8,3598.3,2.77908]
[1732923922162,0.046482,3598.7,3598.3,2.77908]
[1732923922347,2.77871,3598.8,3598.3,2.77908]
[1732923922578,0.04646698,3598.7,3598.3,2.77908]
[1732923922766,2.77871,3598.8,3598.3,2.77908]
[1732923922971,0.04646698,3598.7,3598.3,2.77908]
[1732923923168,3.12436,3599.0,3598.3,2.77908]
[1732923923414,2.82517314,3598.9,3598.3,2.77908]
[1732923927722,2.82517314,3598.9,3598.3,5.55806]
[1732923928220,2.82517314,3598.9,3598.4,2.77899]
[1732923928422,0.04650314,3598.9,3598.5,0.792]
[1732923928732,0.04650314,3598.9,3598.7,2.7787]
[1732923928874,2.77837,3599.3,3598.7,2.7787]
[1732923929785,2.77839,3599.2,3598.7,2.7787]
[1732923930443,0.04499393,3599.1,3598.7,2.7787]
[1732923931793,0.04499393,3599.1,3598.8,2.77867]
[1732923932010,0.04499393,3599.1,3598.7,2.7787]
[1732923932231,2.77837,3599.3,3598.7,2.7787]
[1732923932408,0.04497586,3599.0,3598.5,3.5709]
[1732923932600,2.77837,3599.3,3598.7,2.77873]
[1732923932799,0.04495778,3598.9,3598.7,2.77873]
[1732923932999,2.77837,3599.3,3598.8,2.77868]
[1732923933949,0.3458,3599.4,3598.5,0.792]
[1732923934094,2.77859,3599.0,3598.5,0.792]
[1732923934444,0.04495778,3598.9,3598.5,0.792]
[1732923934898,2.77879,3598.7,3598.2,0.792]
[1732923935103,0.39070355,3598.6,3596.7,0.1]
[1732923935443,2.77913,3598.3,3597.6,2.77962]
[1732923935628,2.77912,3598.3,3597.6,2.77962]
[1732923935802,0.04486128,3598.2,3597.6,3.57162]
[1732923936142,2.82403128,3598.2,3597.6,4.206759]
[1732923937825,0.04486128,3598.2,3597.6,1.427139]
[1732923938019,0.04486128,3598.2,3597.7,2.77955]
[1732923938220,2.77909,3598.3,3597.7,2.77955]
[1732923938454,0.04469483,3598.1,3597.7,2.77955]
[1732923938600,0.04470624,3598.2,3598.0,2.77932]
[1732923938802,2.77883,3598.7,3598.1,3.58024]
[1732923939041,2.77883,3598.7,3598.1,3.858172]
[1732923939702,2.77886,3598.6,3598.1,3.858172]
[1732923940224,2.77886,3598.6,3598.1,1.078932]
[1732923940408,2.77883,3598.7,3598.1,3.858172]
[1732923940606,2.77887,3598.6,3598.1,3.858172]
[1732923940807,2.77887,3598.6,3598.1,3.858142]
[1732923941102,2.77887,3598.6,3598.1,1.078932]
[1732923942120,0.04331173,3598.5,3598.1,3.858162]
[1732923942327,0.04331173,3598.5,3598.2,0.6637502]
[1732923942512,0.04331173,3598.5,3598.1,1.078932]
[1732923943412,0.04331173,3598.5,3598.1,3.858162]
[1732923943614,2.77886,3598.6,3598.1,3.858162]
[1732923943905,0.04331174,3598.5,3598.1,0.801]
[1732923945424,0.04331174,3598.5,3598.1,3.58024]
[1732923945857,0.04331174,3598.5,3598.1,0.801]
[1732923946957,0.04331174,3598.5,3598.2,2.77916]
[1732923947448,2.77872,3598.8,3598.2,2.77916]
[1732923948232,0.3458,3599.0,3598.2,3.415106]
[1732923948538,2.77877,3598.8,3598.2,2.77916]
[1732923949430,2.77887,3598.6,3598.1,0.801]
[1732923949615,0.04185662,3598.7,3598.1,3.58023]
[1732923950329,0.04185662,3598.7,3598.2,2.77916]
[1732923951759,2.82063662,3598.7,3598.2,2.77916]
[1732923952156,0.04185662,3598.7,3598.2,2.77916]
[1732923952655,0.04183854,3598.6,3598.2,2.77916]
[1732923952959,2.77875,3598.8,3598.2,2.77916]
[1732923953349,0.04185662,3598.7,3598.2,2.77916]
[1732923954556,2.82063662,3598.7,3598.2,2.77916]
[1732923954861,2.77888,3598.6,3598.1,0.801]
[1732923955165,0.04182046,3598.5,3598.2,2.77915]
[1732923955454,2.77878,3598.7,3598.2,3.415095]
[1732923955671,0.04180238,3598.4,3598.2,2.77915]
[1732923956167,0.0417843,3598.3,3598.2,2.77915]
[1732923956455,2.77878,3598.7,3598.2,2.77915]
[1732923956667,0.0417843,3598.3,3598.2,2.77915]
[1732923956822,2.77878,3598.7,3598.2,3.415095]
[1732923957025,0.0417843,3598.3,3598.2,2.77915]
[1732923957255,2.77878,3598.7,3598.2,2.77915]
[1732923957448,0.0417843,3598.3,3598.1,3.58023]
[1732923957750,2.77887,3598.6,3598.1,3.58023]
[1732923958252,0.04181543,3598.5,3598.1,3.58023]
[1732923958766,0.04181543,3598.5,3598.2,2.77915]
[1732923958964,2.77878,3598.7,3598.2,2.77915]
[1732923959321,0.04183351,3598.6,3598.2,2.77915]
[1732923964303,2.77874,3598.8,3598.3,0.26036303]
[1732923964462,0.04181543,3598.5,3598.4,0.67698555]
[1732923964954,2.77874,3598.8,3598.4,0.67698555]
[1732923965155,0.04185159,3598.7,3598.5,0.26036303]
[1732923965451,2.77874,3598.8,3598.6,0.26036303]
[1732923965682,2.77874,3598.8,3598.7,0.26036303]
[1732923966325,2.77874,3598.8,3598.7,0.26038907]
[1732923966610,2.77874,3598.8,3598.2,2.77915]
[1732923966763,2.77874,3598.8,3598.7,0.26042392]
[1732923966964,2.77874,3598.8,3598.2,2.77915]
[1732923968271,2.77874,3598.8,3598.2,5.55825]
[1732923968473,2.77874,3598.8,3598.2,2.7791]
[1732923968929,2.77874,3598.8,3598.3,2.77908]
[1732923969227,0.04184992,3598.7,3598.3,2.77908]
[1732923969410,2.77874,3598.8,3598.3,2.77908]
[1732923969603,0.04184992,3598.7,3598.3,2.77908]
[1732923969775,2.77874,3598.8,3598.3,2.77908]
[1732923970087,0.04184992,3598.7,3598.3,2.77908]
[1732923970614,0.04183184,3598.6,3598.3,2.77908]
[1732923970775,2.77874,3598.8,3598.3,2.77908]
[1732923970970,2.77874,3598.8,3598.1,3.58024]
[1732923970971,0.04184992,3598.7,3598.1,3.58024]
[1732923971174,0.04184992,3598.7,3598.1,3.58017]
[1732923972115,0.04184992,3598.7,3598.2,2.77912]
[1732923972816,0.04184992,3598.7,3598.1,3.58017]
[1732923972993,0.04184992,3598.7,3598.3,2.77906]
[1732923973189,2.77874,3598.8,3598.3,2.77906]
[1732923973407,0.04184992,3598.7,3598.3,2.77906]
[1732923973603,2.77874,3598.8,3598.3,2.77906]
[1732923973915,0.04184992,3598.7,3598.3,3.05697]
[1732923974220,2.77874,3598.8,3598.2,2.77914]
[1732923974395,0.04184992,3598.7,3598.2,2.77914]
[1732923975322,0.3458,3598.6,3597.8,0.7655]
[1732923975521,1.20515217,3598.3,3597.1,2.77996]
[1732923975709,0.3458,3597.7,3597.2,2.77992]
[1732923976013,0.04161419,3597.6,3597.2,2.77992]
[1732923976223,0.04161419,3597.6,3597.3,2.77985]
[1732923976896,0.3458,3597.7,3597.3,2.77985]
[1732923977305,0.3458,3597.7,3597.1,3.5455]
[1732923977623,0.3458,3597.7,3597.3,2.77981]
[1732923977784,0.04161419,3597.6,3597.3,2.77981]
[1732923978119,0.04161419,3597.6,3597.3,2.7798]
[1732923978894,0.04161419,3597.6,3597.1,3.92782]
[1732923979193,0.3458,3597.7,3597.1,3.92782]
[1732923979397,0.04161419,3597.6,3597.2,0.670796]
[1732923979985,0.04161419,3597.6,3597.2,3.450716]
[1732923981423,0.04161419,3597.6,3597.3,2.77985]
[1732923982129,0.04161419,3597.6,3597.2,0.670796]
[1732923982327,0.04161419,3597.6,3597.2,3.450726]
[1732923982504,0.04161419,3597.6,3597.3,2.77985]
[1732923982720,0.04161419,3597.6,3597.4,2.77975]
[1732923983243,0.04161419,3597.6,3597.5,3.3297]
[1732923983742,0.3458,3598.0,3597.5,3.3297]
[1732923983907,0.04146695,3597.6,3597.5,3.3297]
[1732923984240,3.125,3598.2,3597.6,2.77956]
[1732923984415,2.77926,3598.1,3597.6,2.77956]
[1732923984738,0.3458,3598.2,3597.6,2.77956]
[1732923984939,3.12497,3598.2,3597.6,2.77956]
[1732923986745,0.3458,3598.2,3597.7,2.7795]
[1732923987329,0.3458,3598.2,3597.6,3.54966]
[1732923987531,3.12497,3598.2,3597.6,3.54966]
[1732923987911,0.04155739,3598.1,3597.6,3.54966]
[1732923988549,0.04155739,3598.1,3597.6,0.7701]
[1732923988704,0.04155739,3598.1,3597.5,0.55]
[1732923988705,0.65821013,3598.1,3597.5,0.55]
[1732923989033,2.77933,3598.0,3597.5,0.55]
[1732923989544,0.04152122,3597.9,3597.5,3.3297]
[1732923990357,0.04152122,3597.9,3597.5,0.55]
[1732923990753,2.82096122,3597.9,3597.5,0.55]
[1732923991563,0.3458,3597.8,3597.4,0.55]
[1732923991866,0.04150511,3597.7,3597.4,0.55]
[1732923992163,0.04150511,3597.7,3597.4,3.32977]
[1732923992332,2.77979,3597.4,3596.6,0.7701]
[1732923992524,2.78014,3597.0,3596.1,0.7701]
[1732923992724,2.78014,3597.0,3596.4,2.78054]
[1732923993054,0.04123488,3596.9,3596.2,0.19752522]
[1732923993260,2.82140488,3596.9,3596.1,0.7701]
[1732923993460,2.78031,3596.8,3596.2,2.78069]
[1732923993759,2.82142804,3596.8,3596.2,3.413855]
[1732923993963,0.04111804,3596.8,3596.2,3.413855]
[1732923994762,2.78033,3596.7,3596.2,3.413855]
[1732923995152,0.04108184,3596.6,3596.2,3.413855]
[1732923995461,0.04108184,3596.6,3596.3,0.55]
[1732923995660,0.38688184,3596.6,3596.0,0.55]
[1732923995834,2.78055,3596.5,3595.9,0.55]
[1732923996031,0.04096698,3596.4,3595.9,1.238226]
[1732923996237,0.04096698,3596.4,3595.9,4.019156]
[1732923996948,0.04096698,3596.4,3596.1,0.55]
[1732923997802,0.3458,3596.6,3596.3,0.55]
[1732923998006,0.3458,3596.6,3596.1,0.55]
[1732923998311,3.1262,3596.6,3596.1,0.55]
[1732923998515,3.1262,3596.6,3595.8,3.55109]
[1732923998516,0.936439,3596.6,3595.8,0.7701]
[1732923998684,2.78072,3596.2,3595.5,2.78125]
[1732923998856,2.78072,3596.2,3595.4,0.7701]
[1732923999161,2.78072,3596.2,3595.6,2.78117]
[1732923999770,2.78072,3596.2,3595.7,0.55]
[1732924002403,2.78062,3596.4,3595.7,3.33107]
[1732924002597,2.78062,3596.4,3595.7,0.55]
[1732924002903,2.82160538,3596.3,3595.7,2.78107]
[1732924005662,2.78071,3596.2,3595.7,2.78107]
[1732924005964,0.03951175,3596.1,3595.7,0.55]
[1732924006871,0.03951175,3596.1,3595.7,2.78105]
[1732924007070,2.78064,3596.3,3595.7,2.78105]
[1732924007273,0.03949364,3596.0,3595.7,2.78105]
[1732924007497,2.78064,3596.3,3595.7,2.78105]
[1732924007796,2.7805,3596.5,3595.8,2.78102]
[1732924007797,0.03947553,3595.9,3595.8,2.78102]
[1732924008004,2.78056,3596.4,3595.8,2.78102]
[1732924008241,2.78022,3596.9,3596.1,0.55]
[1732924008522,2.78022,3596.9,3596.3,2.7806]
[1732924008660,0.590604,3596.8,3596.3,2.7806]
[1732924008858,0.3458,3597.0,3596.4,0.55]
[1732924009160,2.77994,3597.2,3596.6,0.8091]
[1732924009364,2.77986,3597.3,3596.7,2.78029]
[1732924010081,2.77978,3597.4,3596.7,2.78029]
[1732924010376,2.77991,3597.3,3596.6,3.58948]
[1732924010582,3.61460299,3597.5,3596.9,2.78015]
[1732924010888,3.61460299,3597.5,3596.7,2.78027]
[1732924010889,0.03973597,3597.2,3596.7,2.78027]
[1732924012069,0.03973597,3597.2,3596.6,0.8091]
[1732924012256,0.03973597,3597.2,3597.0,2.78003]
[1732924012453,2.77978,3597.4,3596.8,2.78021]
[1732924012690,2.81970106,3597.3,3596.8,2.78021]
[1732924013846,0.3458,3597.0,3596.2,2.78068]
[1732924014045,2.78034,3596.7,3596.2,2.78068]
[1732924014385,0.03970439,3596.6,3595.9,0.00907328]
[1732924014546,0.03970439,3596.6,3596.0,2.78081]
[1732924014739,0.03970439,3596.6,3596.2,2.78067]
[1732924015181,2.78025,3596.8,3596.2,2.78067]
[1732924015383,0.03968795,3596.5,3596.2,2.78067]
[1732924015556,2.78025,3596.8,3596.2,2.78067]
[1732924015755,0.03966985,3596.4,3596.2,2.78067]
[1732924015954,3.3458,3597.0,3596.2,2.78063]
[1732924016152,2.78019,3596.9,3596.3,2.78062]
[1732924016357,0.3458,3597.0,3596.5,2.78046]
[1732924016744,3.12567,3597.3,3596.7,2.7803]
[1732924016945,3.12567,3597.3,3596.4,0.57780327]
[1732924017184,3.12567,3597.3,3596.6,2.78034]
[1732924017185,2.78002,3597.1,3596.6,2.78034]
[1732924017341,3.12567,3597.3,3596.7,2.78032]
[1732924017545,3.12567,3597.3,3596.6,2.78034]
[1732924017797,2.77995,3597.2,3596.6,2.78034]
[1732924017980,2.78001,3597.1,3596.6,2.78034]
[1732924018144,0.03972219,3597.2,3596.7,2.78029]
[1732924018344,0.03969307,3597.0,3596.7,2.78029]
[1732924018546,0.03971284,3597.1,3596.7,2.78029]
[1732924018754,0.03967665,3596.9,3596.7,2.78029]
[1732924018986,2.77995,3597.2,3596.7,2.78029]
[1732924019145,0.03965649,3596.8,3596.7,2.78029]
[1732924019342,2.77995,3597.2,3596.7,2.78029]
[1732924019542,0.03965855,3596.8,3596.7,2.78029]
[1732924020048,2.77994,3597.2,3596.7,2.78029]
[1732924020294,2.81973284,3597.1,3596.4,0.55]
[1732924020595,2.81973284,3597.1,3596.5,2.78043]
[1732924021588,0.03971284,3597.1,3596.8,2.78019]
[1732924021787,0.03971284,3597.1,3597.0,2.78009]
[1732924022095,3.0,3597.6,3597.0,2.78009]
[1732924022096,2.77963,3597.6,3597.0,2.78009]
[1732924022325,0.03975471,3597.1,3596.9,0.8166]
[1732924022444,2.77982,3597.4,3596.8,2.78019]
[1732924022651,0.03982726,3597.3,3596.8,2.78019]
[1732924022854,0.03982726,3597.3,3596.9,2.78012]
[1732924023192,2.77969,3597.6,3596.9,2.78012]
[1732924023193,3.12537,3597.7,3596.9,2.78012]
[1732924023492,2.77972,3597.5,3596.8,3.3302]
[1732924023655,2.77989,3597.3,3596.8,3.3302]
[1732924023995,0.0398113,3597.2,3596.8,3.3302]
[1732924024494,0.03979321,3597.1,3596.9,2.78016]
[1732924024856,2.77971,3597.5,3596.9,2.78016]
[1732924025057,0.03984748,3597.4,3596.9,2.78016]
[1732924025253,2.81968748,3597.4,3597.0,0.41593095]
[1732924025450,2.81968748,3597.4,3597.1,0.41593095]
[1732924025693,2.81968748,3597.4,3597.2,0.41593095]
[1732924025866,2.81968748,3597.4,3596.9,2.78016]
[1732924026895,2.81968748,3597.4,3597.0,0.25993032]
[1732924027059,2.81968748,3597.4,3597.1,0.25993032]
[1732924027261,2.81968748,3597.4,3597.2,0.25993032]
[1732924027559,2.81968748,3597.4,3597.3,0.25993032]
[1732924029002,3.16548748,3597.4,3597.3,0.25993032]
[1732924029201,3.88052045,3597.4,3597.3,0.25993032]
[1732924029901,3.88052045,3597.4,3596.8,3.3302]
[1732924030216,3.16548748,3597.4,3596.9,0.25991163]
[1732924030558,3.16548748,3597.4,3596.8,3.3302]
[1732924030992,0.38564748,3597.4,3596.9,2.78015]
[1732924031304,0.03984748,3597.4,3597.2,2.77992]
[1732924031898,0.03982103,3597.3,3597.2,2.77992]
[1732924032203,0.03982103,3597.3,3597.1,0.51988373]
[1732924032405,2.77963,3597.6,3597.0,2.78008]
[1732924032700,2.77963,3597.6,3597.1,0.51992243]
[1732924032906,0.03985721,3597.5,3597.0,2.78008]
[1732924033058,0.03985721,3597.5,3597.1,0.51992469]
[1732924033258,0.03985721,3597.5,3597.0,2.78008]
[1732924034898,2.81960721,3597.5,3596.8,3.33017]
[1732924035100,2.81960721,3597.5,3597.0,2.78004]
[1732924035988,0.03985721,3597.5,3597.1,2.78]
[1732924036223,0.03985721,3597.5,3596.8,3.740241]
[1732924036442,2.77955,3597.7,3597.0,2.78006]
[1732924036589,0.71100022,3597.7,3597.0,2.78006]
[1732924036789,0.71100022,3597.7,3597.2,2.77992]
[1732924036983,0.038539,3597.6,3597.2,2.77992]
[1732924037185,3.12527,3597.8,3597.2,2.77992]
[1732924037530,2.81810709,3597.7,3597.2,2.77992]